bitfinex/quotes_BTCUSD_20220303
["timestamp","ask_amount","ask_price","bid_price","bid_amount"]
[1646303913716,1.19158532,43183.0,43176.0,0.0513]
[1646303914921,1.19158532,43183.0,43171.0,0.04698231]
[1646303915117,0.30278532,43183.0,43171.0,0.04698231]
[1646303915517,0.21020337,43176.0,43171.0,0.04684585]
[1646303915716,0.09152512,43183.0,43171.0,0.04643647]
[1646303916218,0.09152512,43183.0,43171.0,0.20474119]
[1646303916619,0.02314,43184.0,43171.0,0.20474119]
[1646303916818,0.8888,43185.0,43176.0,0.18211426]
[1646303917118,0.90037,43185.0,43176.0,0.18211426]
[1646303917750,0.90037,43185.0,43176.0,0.18711426]
[1646303917955,0.28314782,43182.0,43176.0,0.18711426]
[1646303919053,0.28314782,43182.0,43176.0,0.18211426]
[1646303919653,0.8888,43185.0,43176.0,0.18211426]
[1646303919852,0.8888,43185.0,43183.0,0.1817944]
[1646303920153,0.87954286,43185.0,43183.0,0.1817944]
[1646303922499,0.87954286,43185.0,43183.0,0.13609583]
[1646303922898,0.28790019,43187.0,43183.0,0.13609583]
[1646303923499,0.22078592,43186.0,43179.0,0.0463]
[1646303924106,0.50868611,43186.0,43179.0,0.0463]
[1646303925357,0.28790019,43185.0,43179.0,0.0463]
[1646303925656,0.22078592,43186.0,43179.0,0.0463]
[1646303925657,0.50868611,43186.0,43179.0,0.0463]
[1646303925857,0.28790019,43185.0,43174.0,0.0483]
[1646303926058,0.28790019,43184.0,43174.0,0.0483]
[1646303926458,0.28790019,43183.0,43174.0,0.002]
[1646303926862,0.2654351,43176.0,43174.0,0.002]
[1646303927061,0.2654351,43176.0,43171.0,0.00013647]
[1646303927260,0.30147266,43175.0,43171.0,0.00013647]
[1646303927661,0.2654351,43176.0,43164.0,0.31967605]
[1646303927863,0.30147266,43175.0,43171.0,0.00013647]
[1646303928060,0.28790019,43179.0,43171.0,0.00013647]
[1646303928559,0.3689848,43179.0,43171.0,0.00013647]
[1646303928800,0.34585119,43176.0,43171.0,0.00013647]
[1646303928998,0.27957125,43174.0,43171.0,0.00013647]
[1646303929202,0.30147266,43175.0,43171.0,0.00013647]
[1646303929998,0.30147266,43175.0,43166.0,0.18255106]
[1646303930202,0.26442153,43168.0,43165.0,0.01691656]
[1646303930404,0.65677466,43167.0,43165.0,0.01691656]
[1646303930606,0.30147266,43166.0,43165.0,0.01691656]
[1646303931003,0.26442153,43168.0,43165.0,0.01691656]
[1646303931400,0.355302,43166.0,43165.0,0.01691656]
[1646303931805,0.38433253,43168.0,43165.0,0.01691656]
[1646303932841,0.32637753,43168.0,43165.0,0.01691656]
[1646303933045,0.32237753,43168.0,43165.0,0.01691656]
[1646303933441,0.29771819,43169.0,43165.0,0.01691656]
[1646303933642,0.23182477,43167.0,43165.0,0.01691656]
[1646303934239,0.057956,43168.0,43165.0,0.01691656]
[1646303935342,0.28838835,43167.0,43165.0,0.01691656]
[1646303938604,1.7557664,43166.0,43160.0,0.0011]
[1646303938808,1.7557664,43166.0,43164.0,0.00013633]
[1646303938809,0.33979836,43165.0,43164.0,0.00013633]
[1646303939006,0.4004644,43165.0,43164.0,0.00013633]
[1646303939205,0.8020664,43165.0,43164.0,0.00013633]
[1646303939612,0.8020664,43165.0,43156.0,4.75e-06]
[1646303939613,1.378442,43164.0,43156.0,4.75e-06]
[1646303939812,0.2,43159.0,43156.0,4.75e-06]
[1646303940061,0.355302,43157.0,43156.0,0.00055007]
[1646303940260,0.3004644,43157.0,43156.0,0.00054532]
[1646303940662,0.56109288,43157.0,43156.0,0.00054532]
[1646303940862,0.02314,43156.0,43148.0,0.00543939]
[1646303941066,0.72814,43155.0,43148.0,0.00543939]
[1646303941265,0.705,43151.0,43148.0,0.00543939]
[1646303941462,0.905,43149.0,43148.0,0.00543939]
[1646303941661,0.5004644,43149.0,43148.0,0.00543939]
[1646303941861,1.1591999,43149.0,43148.0,0.00543939]
[1646303942063,1.70814,43147.0,43140.0,0.00774408]
[1646303942269,0.705,43140.0,43139.0,0.00104408]
[1646303942460,0.35,43139.0,43138.0,0.00390164]
[1646303942662,0.6557664,43139.0,43138.0,0.00390164]
[1646303942873,0.7,43138.0,43135.0,0.62020855]
[1646303943061,1.27319436,43137.0,43135.0,0.62020855]
[1646303943263,1.27319436,43137.0,43135.0,0.61520855]
[1646303943264,0.3954644,43136.0,43135.0,0.61520855]
[1646303943463,0.7507664,43136.0,43135.0,0.61020855]
[1646303943902,0.455302,43136.0,43135.0,0.61020855]
[1646303944102,0.1,43136.0,43135.0,0.61020855]
[1646303944307,1.228442,43133.0,43125.0,0.045377]
[1646303944506,1.228442,43133.0,43124.0,0.00745501]
[1646303944507,0.18,43127.0,43124.0,0.00745501]
[1646303944708,0.18,43125.0,43124.0,0.00745501]
[1646303944910,0.401602,43125.0,43124.0,0.00745501]
[1646303945104,0.1463,43125.0,43124.0,0.00745501]
[1646303945307,0.45,43122.0,43116.0,0.05695813]
[1646303945504,0.18,43118.0,43116.0,0.05695813]
[1646303945704,0.6557664,43117.0,43116.0,0.05585813]
[1646303945905,0.26047,43118.0,43116.0,0.05585813]
[1646303946105,0.08047,43118.0,43117.0,0.00016002]
[1646303946703,0.058023,43120.0,43117.0,0.00016002]
[1646303946904,0.058023,43120.0,43116.0,0.05585813]
[1646303947305,0.763023,43120.0,43116.0,0.05585813]
[1646303947553,0.3004644,43119.0,43116.0,0.05585813]
[1646303947748,0.061023,43120.0,43116.0,0.05585813]
[1646303948350,0.6557664,43119.0,43116.0,0.05600962]
[1646303948550,0.355302,43117.0,43116.0,0.05600962]
[1646303948753,0.6557664,43117.0,43116.0,0.05600962]
[1646303949149,0.058023,43120.0,43116.0,0.05600962]
[1646303949351,0.058023,43120.0,43116.0,0.05585813]
[1646303949750,0.18,43118.0,43116.0,0.05585813]
[1646303949952,0.355302,43117.0,43116.0,0.05585813]
[1646303950156,1.57334263,43117.0,43116.0,0.05585813]
[1646303950356,1.67334263,43117.0,43116.0,0.05585813]
[1646303950651,0.7557664,43117.0,43116.0,0.05523187]
[1646303950953,0.1,43117.0,43116.0,0.05523187]
[1646303951402,0.355302,43117.0,43116.0,0.05523187]
[1646303951803,0.455302,43117.0,43116.0,0.05523187]
[1646303952003,0.19158,43119.0,43116.0,0.05523187]
[1646303952408,0.006,43122.0,43116.0,0.05523187]
[1646303952609,0.006,43122.0,43121.0,0.02314]
[1646303952910,0.006,43122.0,43120.0,0.30133978]
[1646303953106,0.05,43132.0,43120.0,0.30133978]
[1646303953307,0.057995,43135.0,43121.0,0.15755535]
[1646303953506,0.237995,43135.0,43121.0,0.15755535]
[1646303953709,0.18,43130.0,43119.0,0.2224897]
[1646303953905,0.18,43130.0,43120.0,0.007]
[1646303954106,0.01158,43136.0,43120.0,0.007]
[1646303954107,0.18,43126.0,43120.0,0.007]
[1646303954307,0.18,43126.0,43122.0,0.00013947]
[1646303954509,0.058016,43125.0,43122.0,0.00013947]
[1646303954708,0.18,43124.0,43122.0,0.00013947]
[1646303955152,0.158016,43125.0,43122.0,0.00013947]
[1646303955350,0.18,43124.0,43118.0,0.20911972]
[1646303955558,0.18,43124.0,43121.0,0.00014008]
[1646303956252,0.355302,43123.0,43121.0,0.00014008]
[1646303956452,0.175,43124.0,43121.0,0.00014008]
[1646303956653,0.175,43124.0,43116.0,0.05523187]
[1646303956852,0.36143162,43125.0,43120.0,0.0001338]
[1646303957154,0.355302,43124.0,43120.0,0.0001338]
[1646303957454,0.175,43121.0,43120.0,0.0001338]
[1646303957853,0.175,43121.0,43116.0,0.05523187]
[1646303958055,0.175,43121.0,43118.0,0.0001338]
[1646303958995,0.175,43121.0,43117.0,0.19501891]
[1646303959201,0.175,43121.0,43117.0,0.19515272]
[1646303959595,0.175,43121.0,43120.0,0.26451672]
[1646303959897,0.355302,43120.0,43117.0,0.00613381]
[1646303960097,0.05802,43119.0,43117.0,0.00613381]
[1646303960295,0.05802,43119.0,43117.0,0.006]
[1646303960799,0.05802,43119.0,43117.0,0.18151546]
[1646303961196,0.05802,43119.0,43116.0,0.26091407]
[1646303961397,0.05802,43119.0,43116.0,0.2607785]
[1646303961598,0.05802,43119.0,43116.0,0.26091407]
[1646303962197,0.05802,43119.0,43117.0,0.19883834]
[1646303962445,0.05802,43119.0,43116.0,0.26091407]
[1646303962646,0.05802,43119.0,43116.0,0.2607785]
[1646303962846,0.175,43121.0,43116.0,0.26091407]
[1646303963450,0.355302,43120.0,43116.0,0.26091407]
[1646303963651,0.175,43121.0,43116.0,0.05536744]
[1646303963847,0.175,43121.0,43116.0,0.05523187]
[1646303964048,0.175,43121.0,43116.0,0.05536704]
[1646303964450,0.03546969,43125.0,43117.0,0.20008335]
[1646303964652,0.05,43132.0,43118.0,0.33744622]
[1646303965054,0.30041562,43137.0,43118.0,0.33744622]
[1646303965352,0.01159,43136.0,43123.0,0.00013515]
[1646303965553,0.05,43142.0,43127.0,0.1599521]
[1646303965755,0.175,43141.0,43134.0,0.15795875]
[1646303965958,0.01328635,43133.0,43127.0,0.02314]
[1646303966204,0.01328635,43133.0,43129.0,0.02314]
[1646303966400,0.01328635,43133.0,43130.0,0.06944]
[1646303966599,0.01328635,43133.0,43132.0,0.1368121]
[1646303966802,0.01328635,43133.0,43132.0,0.74712719]
[1646303967200,0.01328635,43133.0,43132.0,0.80375962]
[1646303967801,0.01328635,43133.0,43132.0,0.83389962]
[1646303968004,0.01328635,43133.0,43132.0,0.77726719]
[1646303968200,0.01328635,43133.0,43132.0,0.75412719]
[1646303968606,0.01328635,43133.0,43132.0,0.45363425]
[1646303969203,0.01328635,43133.0,43132.0,0.61239068]
[1646303969805,0.01328635,43133.0,43132.0,0.61839068]
[1646303971048,0.01328635,43133.0,43132.0,0.61239068]
[1646303971749,0.01328635,43133.0,43132.0,0.63553068]
[1646303971948,0.01328635,43133.0,43132.0,0.70172292]
[1646303972652,0.01328635,43133.0,43132.0,0.61939068]
[1646303972849,0.01328635,43133.0,43132.0,0.10476742]
[1646303973050,0.01328635,43133.0,43132.0,0.48777562]
[1646303973700,0.0127034,43133.0,43132.0,0.48777562]
[1646303974103,0.0127034,43133.0,43132.0,0.26185241]
[1646303974307,0.0127034,43133.0,43132.0,0.21555241]
[1646303975099,0.0127034,43133.0,43132.0,0.35555241]
[1646303976301,0.0127034,43133.0,43132.0,0.54029438]
[1646303977557,0.0127034,43133.0,43132.0,0.54045742]
[1646303977755,0.01259124,43133.0,43132.0,0.54045742]
[1646303977955,0.01259124,43133.0,43132.0,0.54545742]
[1646303978355,0.01259124,43133.0,43132.0,0.5453367]
[1646303978758,0.01259124,43133.0,43132.0,0.4053367]
[1646303979060,0.01259124,43133.0,43132.0,0.50233139]
[1646303979257,0.01259124,43133.0,43132.0,0.57177139]
[1646303979460,0.05,43142.0,43133.0,1.0]
[1646303979660,0.8888,43145.0,43133.0,1.0]
[1646303979661,0.8888,43145.0,43134.0,0.0463]
[1646303979871,0.8888,43145.0,43138.0,0.14]
[1646303980057,0.8888,43145.0,43142.0,0.30285807]
[1646303980258,0.8888,43145.0,43144.0,0.14]
[1646303980458,0.8888,43145.0,43144.0,0.18646304]
[1646303980660,0.8888,43145.0,43144.0,0.67381855]
[1646303980861,0.8888,43145.0,43144.0,0.67360528]
[1646303981063,0.2531707,43154.0,43145.0,1.02314]
[1646303981064,0.05,43154.0,43145.0,1.02314]
[1646303981301,0.75130019,43160.0,43145.0,1.02314]
[1646303981302,0.1915907,43160.0,43149.0,0.14]
[1646303981602,0.1915907,43160.0,43152.0,0.16635706]
[1646303981800,0.1915907,43157.0,43153.0,0.30415524]
[1646303981999,0.1915907,43157.0,43153.0,0.22241479]
[1646303982301,0.1915907,43160.0,43154.0,0.00013513]
[1646303982502,0.001,43161.0,43155.0,0.0463]
[1646303982701,0.001,43161.0,43156.0,0.30415524]
[1646303982900,0.001,43161.0,43156.0,0.04646304]
[1646303983700,0.1915907,43160.0,43156.0,0.04646304]
[1646303984106,0.21206344,43159.0,43156.0,0.04646304]
[1646303984301,0.27002544,43159.0,43156.0,0.04646304]
[1646303985743,0.057962,43159.0,43156.0,0.04646304]
[1646303985944,0.057962,43159.0,43156.0,0.0158439]
[1646303986145,0.057962,43159.0,43156.0,0.01600694]
[1646303986747,0.001,43161.0,43156.0,0.01600694]
[1646303987143,0.176,43161.0,43156.0,0.01600694]
[1646303989393,0.001,43161.0,43156.0,0.01600694]
[1646303989790,0.176,43161.0,43156.0,0.01900694]
[1646303991190,0.176,43161.0,43156.0,0.01600694]
[1646303991897,0.176,43161.0,43156.0,0.01800694]
[1646303992095,0.001,43161.0,43156.0,0.01800694]
[1646303993163,0.001,43161.0,43156.0,0.01600694]
[1646303993358,0.001,43161.0,43156.0,0.19157805]
[1646303993956,0.001,43161.0,43156.0,0.19457805]
[1646303995156,0.001,43161.0,43156.0,0.19157805]
[1646303995557,0.176,43161.0,43156.0,0.01600694]
[1646303996397,0.1737538,43161.0,43156.0,0.01600694]
[1646303996596,0.001,43163.0,43156.0,0.00016304]
[1646303997597,0.001,43163.0,43157.0,0.27016542]
[1646303997799,0.001,43163.0,43157.0,0.31662846]
[1646303998003,0.001,43163.0,43158.0,0.32608206]
[1646303998199,0.001,43163.0,43162.0,0.21566704]
[1646303998402,0.001,43163.0,43162.0,0.26213008]
[1646303998798,0.001,43163.0,43162.0,0.04646304]
[1646303998999,0.001,43163.0,43162.0,0.14840102]
[1646303999300,0.001,43163.0,43162.0,0.14839984]
[1646303999959,0.001,43163.0,43162.0,0.15039984]
[1646304001162,0.001,43163.0,43162.0,0.14839984]
[1646304002562,0.001,43163.0,43162.0,0.4553419]
[1646304002763,0.001,43163.0,43162.0,0.15239984]
[1646304002963,0.001,43163.0,43159.0,0.17628766]
[1646304003263,0.001,43163.0,43162.0,0.0380632]
[1646304003465,0.001,43163.0,43162.0,0.38634722]
[1646304003905,0.001,43163.0,43162.0,0.38934722]
[1646304005309,0.001,43163.0,43162.0,0.38634722]
[1646304005513,0.001,43163.0,43162.0,0.37142402]
[1646304005709,0.001,43163.0,43162.0,0.40948722]
[1646304005912,0.001,43169.0,43163.0,0.21437634]
[1646304006115,0.1915907,43174.0,43165.0,0.02314]
[1646304006314,0.05,43176.0,43166.0,0.31197592]
[1646304006315,0.2415907,43176.0,43166.0,0.31197592]
[1646304006512,0.1915907,43176.0,43174.0,0.02314]
[1646304006711,0.1925907,43177.0,43172.0,0.40838255]
[1646304006909,0.001,43177.0,43176.0,0.0380632]
[1646304007110,0.001,43177.0,43176.0,0.0843632]
[1646304007552,0.00110421,43177.0,43176.0,0.0843632]
[1646304007748,0.00110421,43177.0,43176.0,0.0463]
[1646304007947,0.00110421,43177.0,43176.0,0.08144866]
[1646304008360,0.001,43177.0,43176.0,0.38343268]
[1646304008554,0.1925907,43181.0,43177.0,0.02314]
[1646304008555,0.00010421,43179.0,43177.0,0.02314]
[1646304008755,0.00010421,43179.0,43178.0,0.1075032]
[1646304008953,0.00010421,43179.0,43178.0,0.40755188]
[1646304009354,0.00010421,43179.0,43178.0,0.50755188]
[1646304009552,0.001,43181.0,43178.0,0.54231909]
[1646304009750,0.001,43181.0,43180.0,0.0380632]
[1646304009950,0.001,43181.0,43180.0,0.38441188]
[1646304009951,0.00110368,43181.0,43180.0,0.38441188]
[1646304010650,0.00110368,43181.0,43180.0,0.1843632]
[1646304010850,0.001,43181.0,43180.0,0.0843632]
[1646304011298,0.001,43181.0,43180.0,0.0463]
[1646304011700,0.001,43181.0,43173.0,0.0463]
[1646304011897,0.001,43181.0,43175.0,0.004]
[1646304012098,0.001,43181.0,43176.0,0.0463]
[1646304012301,0.001,43181.0,43180.0,0.0380632]
[1646304012802,0.001,43181.0,43180.0,0.0843632]
[1646304015842,0.001,43181.0,43178.0,0.1855679]
[1646304016043,0.001,43181.0,43179.0,0.0463]
[1646304016643,0.001,43181.0,43180.0,0.0380632]
[1646304016844,0.001,43181.0,43180.0,0.0843632]
[1646304017246,0.001,43181.0,43180.0,0.38441188]
[1646304017648,0.00014012,43182.0,43180.0,0.38441188]
[1646304017649,0.00014012,43182.0,43180.0,0.48441188]
[1646304017846,0.00014012,43182.0,43181.0,0.43811188]
[1646304018052,0.011,43189.0,43181.0,0.48441188]
[1646304018246,0.011,43189.0,43185.0,0.0380632]
[1646304018453,0.011,43189.0,43188.0,0.0380632]
[1646304018705,0.011,43189.0,43188.0,0.0843632]
[1646304022443,9.622e-05,43191.0,43189.0,1.0]
[1646304022653,9.622e-05,43191.0,43190.0,0.38441188]
[1646304022848,0.05,43202.0,43190.0,0.1843632]
[1646304023044,0.05,43202.0,43190.0,0.1463]
[1646304023250,0.00014616,43192.0,43190.0,0.44634868]
[1646304023446,0.00014616,43192.0,43191.0,0.0380632]
[1646304023746,0.00014616,43192.0,43191.0,0.0843632]
[1646304024145,0.1915907,43202.0,43191.0,0.0843632]
[1646304024345,0.1925907,43203.0,43198.0,0.23299742]
[1646304024544,0.1925907,43203.0,43197.0,0.2017591]
[1646304024745,0.1925907,43203.0,43198.0,0.0463]
[1646304025148,0.1915907,43202.0,43198.0,0.0463]
[1646304026309,0.19268829,43203.0,43198.0,0.0463]
[1646304026511,0.1925907,43203.0,43198.0,0.0463]
[1646304026709,9.759e-05,43202.0,43198.0,0.0463]
[1646304026908,9.759e-05,43202.0,43196.0,0.26090863]
[1646304027211,0.19168829,43202.0,43196.0,0.26090863]
[1646304027612,0.1915907,43201.0,43191.0,0.0463]
[1646304028008,0.1915907,43201.0,43191.0,0.0493]
[1646304028009,0.19174497,43201.0,43191.0,0.0493]
[1646304028218,0.357903,43200.0,43191.0,0.0493]
[1646304028416,0.1737538,43198.0,43191.0,0.0493]
[1646304028613,0.23560156,43193.0,43191.0,0.0493]
[1646304028813,0.3,43192.0,43191.0,0.0493]
[1646304029012,0.23560156,43193.0,43191.0,0.0493]
[1646304029211,0.23560156,43193.0,43191.0,0.0463]
[1646304029811,0.3,43192.0,43179.0,0.1181]
[1646304030056,0.3,43192.0,43175.0,0.125]
[1646304030057,0.1737538,43190.0,43186.0,0.002]
[1646304030262,0.3,43189.0,43186.0,0.002]
[1646304030458,0.1737538,43190.0,43186.0,0.002]
[1646304030660,0.3,43189.0,43186.0,0.002]
[1646304031059,0.20318621,43188.0,43179.0,0.2605081]
[1646304031956,0.20318621,43188.0,43176.0,0.16866498]
[1646304032357,0.20318621,43188.0,43174.0,0.005]
[1646304032757,0.00013985,43184.0,43174.0,0.005]
[1646304032957,0.00013985,43184.0,43178.0,0.0380632]
[1646304033158,0.00013985,43184.0,43182.0,0.0380632]
[1646304033357,0.00013985,43184.0,43183.0,0.0380632]
[1646304033817,0.20318621,43188.0,43183.0,0.0380632]
[1646304034021,0.00013985,43186.0,43178.0,0.24543929]
[1646304034217,0.00013985,43186.0,43178.0,0.20045983]
[1646304034816,0.20318621,43188.0,43178.0,0.20045983]
[1646304035219,0.00014063,43184.0,43178.0,0.48332149]
[1646304035417,0.00014063,43184.0,43182.0,0.0380632]
[1646304035618,0.00014063,43184.0,43183.0,0.0380632]
[1646304036018,0.20318621,43188.0,43183.0,0.0380632]
[1646304036218,0.20318621,43188.0,43176.0,0.18133389]
[1646304036424,0.00013654,43186.0,43177.0,0.16527104]
[1646304036622,0.00013654,43186.0,43177.0,0.41672514]
[1646304036819,0.00013654,43186.0,43176.0,0.18133389]
[1646304037222,0.20318621,43188.0,43176.0,0.18133389]
[1646304037659,0.00013655,43183.0,43176.0,0.18133389]
[1646304037861,0.00013655,43183.0,43180.0,0.0380632]
[1646304038060,0.00013655,43183.0,43182.0,0.0380632]
[1646304038263,0.00013655,43183.0,43176.0,0.18133389]
[1646304038460,0.3,43186.0,43176.0,0.18133389]
[1646304038663,0.3,43186.0,43178.0,0.28902878]
[1646304038862,0.00013697,43185.0,43178.0,0.28902878]
[1646304039261,0.00013697,43185.0,43182.0,0.0380632]
[1646304039262,0.19205893,43185.0,43182.0,0.0380632]
[1646304039461,0.19205893,43185.0,43184.0,0.0380632]
[1646304039663,0.3,43189.0,43184.0,0.0380632]
[1646304039664,0.19192196,43186.0,43184.0,0.0380632]
[1646304039864,0.19192196,43186.0,43185.0,0.0380632]
[1646304040062,0.19205954,43186.0,43185.0,0.0380632]
[1646304040862,0.19192196,43186.0,43185.0,0.0380632]
[1646304041307,0.23978308,43186.0,43185.0,0.0380632]
[1646304042106,0.23978308,43186.0,43185.0,0.01467246]
[1646304042907,0.23978308,43187.0,43185.0,0.01467246]
[1646304043208,0.23978308,43186.0,43183.0,0.19492951]
[1646304043505,0.19213703,43184.0,43183.0,0.19492951]
[1646304043707,0.19213703,43184.0,43183.0,0.20960197]
[1646304043905,0.19213703,43184.0,43183.0,0.21160197]
[1646304044506,0.23978308,43186.0,43183.0,0.21160197]
[1646304044706,0.23978308,43186.0,43185.0,0.01467246]
[1646304046957,0.23978308,43186.0,43183.0,0.02146943]
[1646304047555,0.192178,43184.0,43183.0,0.02146943]
[1646304047757,0.192178,43184.0,43183.0,0.13658817]
[1646304047955,0.192178,43184.0,43183.0,0.13657751]
[1646304048158,0.23978308,43186.0,43183.0,0.13657751]
[1646304048358,0.23994142,43186.0,43183.0,0.02146943]
[1646304048557,0.23978308,43184.0,43183.0,0.02146943]
[1646304048811,0.23978308,43184.0,43183.0,0.13657751]
[1646304049617,0.23978308,43184.0,43183.0,0.11510808]
[1646304050308,0.28790019,43184.0,43183.0,0.11510808]
[1646304050710,0.28790019,43185.0,43183.0,0.11510808]
[1646304050911,0.28790019,43185.0,43184.0,0.1622292]
[1646304051314,0.00015036,43186.0,43184.0,0.1622292]
[1646304051315,0.00015036,43186.0,43184.0,0.23492603]
[1646304051513,0.00015036,43186.0,43185.0,0.10188251]
[1646304051714,0.28790019,43187.0,43185.0,0.10188251]
[1646304051912,0.28790019,43187.0,43184.0,0.2085292]
[1646304052116,0.28790019,43187.0,43184.0,0.2115292]
[1646304052117,0.28805055,43187.0,43184.0,0.2115292]
[1646304052654,0.28789693,43187.0,43184.0,0.2115292]
[1646304052859,0.28774657,43187.0,43184.0,0.2115292]
[1646304053259,0.28774657,43187.0,43184.0,0.2085292]
[1646304053562,0.00015036,43188.0,43184.0,0.2085292]
[1646304053956,0.00015036,43188.0,43184.0,0.2115292]
[1646304054157,0.33598027,43189.0,43184.0,0.2115292]
[1646304054357,0.00013672,43188.0,43184.0,0.2115292]
[1646304054759,1.00013672,43188.0,43184.0,0.2115292]
[1646304055256,1.0,43188.0,43184.0,0.2115292]
[1646304055656,1.00013672,43188.0,43184.0,0.2085292]
[1646304055857,1.00013672,43188.0,43185.0,0.21103862]
[1646304056530,1.0,43188.0,43185.0,0.21103862]
[1646304056729,1.0,43188.0,43187.0,0.14]
[1646304056929,1.0,43188.0,43187.0,0.4863]
[1646304058028,1.0,43188.0,43187.0,0.5893]
[1646304058329,1.0,43188.0,43187.0,0.61244]
[1646304058532,1.0,43188.0,43187.0,0.5893]
[1646304059328,1.0,43188.0,43187.0,0.5863]
[1646304059961,1.0,43188.0,43187.0,0.5903]
[1646304061361,1.0,43188.0,43187.0,0.5863]
[1646304062567,1.0,43188.0,43187.0,0.54817543]
[1646304064915,0.33598027,43196.0,43189.0,1.0]
[1646304065126,0.28657347,43200.0,43195.0,0.357881]
[1646304065319,0.001,43203.0,43199.0,0.62070814]
[1646304065617,0.001,43203.0,43200.0,0.0463]
[1646304065815,0.001,43203.0,43200.0,0.1463]
[1646304066014,0.01257,43214.0,43202.0,0.3344644]
[1646304066219,0.01257,43214.0,43206.0,0.14]
[1646304066220,0.001,43214.0,43206.0,0.14]
[1646304066417,0.001,43214.0,43210.0,0.10182828]
[1646304066617,0.001,43214.0,43210.0,0.21422828]
[1646304067671,9.643e-05,43213.0,43210.0,0.14812828]
[1646304067868,9.643e-05,43213.0,43210.0,0.04792]
[1646304068273,0.26902329,43212.0,43210.0,0.04792]
[1646304068475,0.001,43214.0,43210.0,0.04792]
[1646304068871,9.643e-05,43213.0,43210.0,0.04792]
[1646304069272,9.643e-05,43213.0,43210.0,0.0463]
[1646304069474,0.05798443,43213.0,43210.0,0.0463]
[1646304069672,0.4200602,43211.0,43203.0,0.0463]
[1646304069972,0.4200602,43211.0,43205.0,0.001]
[1646304070178,0.4200602,43211.0,43206.0,0.0463]
[1646304070179,0.001,43211.0,43206.0,0.0463]
[1646304071215,0.00115473,43211.0,43207.0,0.28503632]
[1646304071416,0.00115473,43211.0,43206.0,0.0463]
[1646304072115,0.001,43211.0,43206.0,0.0463]
[1646304072315,0.00115473,43211.0,43206.0,0.0463]
[1646304072518,0.00115473,43211.0,43209.0,0.24046641]
[1646304073417,0.001,43211.0,43209.0,0.24046641]
[1646304073618,0.001,43211.0,43209.0,0.28676641]
[1646304073817,0.001,43211.0,43209.0,0.0463]
[1646304074015,0.001,43211.0,43209.0,0.0493]
[1646304075069,0.001,43211.0,43210.0,0.31629651]
[1646304075261,0.001,43211.0,43209.0,0.29117273]
[1646304076262,0.001,43211.0,43210.0,0.14]
[1646304076462,0.00014081,43212.0,43210.0,0.3700812]
[1646304076666,0.00014081,43212.0,43211.0,0.4018165]
[1646304076863,0.00014081,43212.0,43211.0,0.1734424]
[1646304077064,0.001,43214.0,43211.0,0.2734424]
[1646304077266,0.00114158,43214.0,43213.0,0.0400324]
[1646304077463,0.00114158,43214.0,43213.0,0.0863324]
[1646304078068,0.00114158,43214.0,43213.0,0.0903324]
[1646304078270,0.001,43214.0,43213.0,0.1903324]
[1646304078464,0.001,43214.0,43213.0,0.2903]
[1646304079305,0.001,43214.0,43213.0,0.2863]
[1646304079706,0.001,43214.0,43213.0,0.45048941]
[1646304080107,0.001,43214.0,43213.0,0.2863]
[1646304080507,0.001,43214.0,43213.0,0.2481165]
[1646304080906,0.001,43214.0,43213.0,0.1463]
[1646304081107,0.001,43214.0,43213.0,0.46536182]
[1646304081316,0.001,43214.0,43213.0,0.17390616]
[1646304082009,0.001,43214.0,43213.0,0.17890616]
[1646304082606,0.001,43214.0,43213.0,0.55173139]
[1646304082673,0.001,43214.0,43213.0,0.65173139]
[1646304083271,0.001,43214.0,43213.0,0.34673139]
[1646304083469,0.001,43214.0,43213.0,0.47390616]
[1646304083669,0.001,43218.0,43214.0,1.0]
[1646304083867,0.001,43218.0,43217.0,0.14]
[1646304084073,0.001,43218.0,43217.0,0.4863]
[1646304084368,0.001,43218.0,43217.0,0.48588999]
[1646304084569,0.001,43218.0,43217.0,0.18588999]
[1646304084968,0.001,43218.0,43217.0,0.20902999]
[1646304085170,0.001,43218.0,43217.0,0.54322542]
[1646304085570,0.001,43218.0,43217.0,0.16944]
[1646304085774,0.001,43218.0,43217.0,0.53305069]
[1646304085972,0.001,43218.0,43217.0,0.40931308]
[1646304086201,0.001,43218.0,43217.0,0.2135954]
[1646304086408,0.00064241,43218.0,43217.0,0.2135954]
[1646304086809,0.00064241,43218.0,43217.0,0.1904554]
[1646304087007,0.00064241,43218.0,43217.0,0.0904554]
[1646304087202,0.00064241,43218.0,43217.0,0.0844554]
[1646304087604,0.00064241,43218.0,43217.0,0.0463]
[1646304088007,0.00064241,43218.0,43217.0,0.14810943]
[1646304088206,0.00064241,43218.0,43217.0,0.10180943]
[1646304093714,0.00018581,43218.0,43217.0,0.40180943]
[1646304094113,0.00018581,43218.0,43217.0,0.34729839]
[1646304094413,0.00018581,43218.0,43217.0,0.32795326]
[1646304094614,0.00018581,43218.0,43217.0,0.47425326]
[1646304094813,0.00018581,43218.0,43217.0,0.17425326]
[1646304095211,0.00018581,43218.0,43217.0,0.17326135]
[1646304095712,0.00018581,43218.0,43217.0,0.07286792]
[1646304096418,0.00018581,43218.0,43217.0,0.02656792]
[1646304097314,0.00018581,43218.0,43213.0,0.1]
[1646304097562,0.00018581,43218.0,43212.0,0.21878246]
[1646304097960,0.00018581,43218.0,43212.0,0.16748246]
[1646304098359,0.00018581,43218.0,43216.0,0.41156935]
[1646304098559,0.00018581,43218.0,43217.0,0.14]
[1646304098961,0.00033788,43218.0,43217.0,0.14]
[1646304099759,0.00018581,43218.0,43217.0,0.14]
[1646304102143,0.00018581,43218.0,43217.0,0.004]
[1646304103060,0.17393961,43218.0,43217.0,0.004]
[1646304103245,0.42521089,43218.0,43217.0,0.004]
[1646304103447,0.42521089,43218.0,43204.0,0.3]
[1646304103448,0.02314,43217.0,43204.0,0.3]
[1646304103647,0.02314,43217.0,43204.0,0.05533571]
[1646304103846,0.1737538,43216.0,43213.0,0.19500567]
[1646304104052,0.00018581,43218.0,43213.0,0.19500567]
[1646304105063,0.00033773,43218.0,43213.0,0.19500567]
[1646304105358,0.00033773,43218.0,43217.0,0.14]
[1646304105559,0.00033773,43218.0,43207.0,0.3]
[1646304105957,0.1737538,43216.0,43209.0,0.18627943]
[1646304106567,0.1737538,43216.0,43213.0,0.14]